[Event "Early-Titled-Tuesday-Blitz-May-14-2024"]
[Site "Chess.com"]
[Date "2024.05.14"]
[Round "2"]
[White "Aygehovit1992"]
[Black "Baronessa08"]
[Result "1-0"]
[WhiteElo "2860"]
[BlackElo "2593"]
[TimeControl "180+1"]
[EndTime "8:20:47 PDT"]
[Termination "Aygehovit1992 won by resignation"]

1. e4 {[%clk 0:03:00.9]} 1... e5 {[%clk 0:02:58.6]} 2. Nf3 {[%clk 0:03:00.9]}
2... Nc6 {[%clk 0:02:58.8]} 3. Bb5 {[%clk 0:03:01.3]} 3... Nf6 {[%clk
0:02:58.4]} 4. O-O {[%clk 0:02:59.2]} 4... Nxe4 {[%clk 0:02:58.5]} 5. d4 {[%clk
0:02:59.5]} 5... Nd6 {[%clk 0:02:58.3]} 6. Bxc6 {[%clk 0:03:00]} 6... dxc6
{[%clk 0:02:58.2]} 7. dxe5 {[%clk 0:03:00.9]} 7... Nf5 {[%clk 0:02:58.6]} 8.
Qxd8+ {[%clk 0:03:01.7]} 8... Kxd8 {[%clk 0:02:59.4]} 9. h3 {[%clk 0:03:02.4]}
9... Ke8 {[%clk 0:02:57.1]} 10. Nc3 {[%clk 0:03:01.3]} 10... h6 {[%clk
0:02:45.6]} 11. Re1 {[%clk 0:02:54.4]} 11... Ne7 {[%clk 0:02:43.7]} 12. Ne2
{[%clk 0:02:51.8]} 12... c5 {[%clk 0:02:37.5]} 13. Nf4 {[%clk 0:02:50.8]} 13...
Bf5 {[%clk 0:02:36.1]} 14. c4 {[%clk 0:02:49.9]} 14... Be6 {[%clk 0:02:14.3]}
15. b3 {[%clk 0:02:47.9]} 15... Nf5 {[%clk 0:02:13.6]} 16. Bb2 {[%clk
0:02:46.6]} 16... a5 {[%clk 0:01:52.9]} 17. a4 {[%clk 0:02:20.5]} 17... Be7
{[%clk 0:01:51.8]} 18. Nd5 {[%clk 0:02:10.1]} 18... Rc8 {[%clk 0:01:42]} 19. g4
{[%clk 0:02:05.2]} 19... Nh4 {[%clk 0:01:41.4]} 20. Nxh4 {[%clk 0:01:36.2]}
20... Bxh4 {[%clk 0:01:42.3]} 21. Re4 {[%clk 0:01:22.4]} 21... c6 {[%clk
0:01:30.2]} 22. Ne3 {[%clk 0:01:15]} 22... Rd8 {[%clk 0:01:01.8]} 23. Bc3 {[%clk
0:01:12]} 23... Rd3 {[%clk 0:00:53.4]} 24. Bxa5 {[%clk 0:01:02.7]} 24... Rxb3
{[%clk 0:00:54.3]} 25. Nf5 {[%clk 0:01:00.4]} 25... Bxf5 {[%clk 0:00:50.3]} 26.
gxf5 {[%clk 0:01:00.6]} 26... Bg5 {[%clk 0:00:32]} 27. h4 {[%clk 0:00:39.1]}
27... Bd8 {[%clk 0:00:29.6]} 28. Bxd8 {[%clk 0:00:38.7]} 28... Kxd8 {[%clk
0:00:30.5]} 29. a5 {[%clk 0:00:37.5]} 29... Ke7 {[%clk 0:00:27.6]} 30. a6 {[%clk
0:00:36.5]} 30... Ra8 {[%clk 0:00:24.1]} 31. a7 {[%clk 0:00:36.9]} 31... b5
{[%clk 0:00:20]} 32. cxb5 {[%clk 0:00:35.1]} 32... cxb5 {[%clk 0:00:19.5]} 33.
e6 {[%clk 0:00:35]} 33... Rb4 {[%clk 0:00:14.1]} 34. Re5 {[%clk 0:00:05.4]}
34... Ra4 {[%clk 0:00:13.6]} 35. Rd1 {[%clk 0:00:05.1]} 35... R8xa7 {[%clk
0:00:11.6]} 36. Rxc5 {[%clk 0:00:04.2]} 36... fxe6 {[%clk 0:00:10.1]} 37. Re5
{[%clk 0:00:03.8]} 37... Ra1 {[%clk 0:00:08.5]} 38. Rxe6+ {[%clk 0:00:03.7]}
38... Kf7 {[%clk 0:00:09]} 39. Rxa1 {[%clk 0:00:03]} 39... Rxa1+ {[%clk
0:00:09.9]} 40. Kg2 {[%clk 0:00:03.8]} 40... Rb1 {[%clk 0:00:09.5]} 41. Kg3
{[%clk 0:00:03.7]} 41... b4 {[%clk 0:00:09.8]} 42. Rb6 {[%clk 0:00:04.3]} 42...
b3 {[%clk 0:00:09.8]} 43. Kf4 {[%clk 0:00:05]} 43... Rh1 {[%clk 0:00:05.6]} 44.
Rb7+ {[%clk 0:00:05]} 44... Kf6 {[%clk 0:00:05.1]} 45. Rb6+ {[%clk 0:00:04.9]}
45... Kf7 {[%clk 0:00:05.5]} 46. Kg3 {[%clk 0:00:04.8]} 46... Rb1 {[%clk
0:00:04.9]} 47. f3 {[%clk 0:00:04.7]} 47... Ke7 {[%clk 0:00:04.1]} 48. h5 {[%clk
0:00:04.5]} 48... Kf7 {[%clk 0:00:04.2]} 49. Kf4 {[%clk 0:00:04.7]} 49... Rh1
{[%clk 0:00:03.1]} 50. Rb7+ {[%clk 0:00:04.7]} 50... Kf6 {[%clk 0:00:03.1]} 51.
Rb6+ {[%clk 0:00:05.1]} 51... Kf7 {[%clk 0:00:03.6]} 52. Rxb3 {[%clk 0:00:04.6]}
52... Rh4+ {[%clk 0:00:03.8]} 53. Ke5 {[%clk 0:00:04.6]} 53... Rxh5 {[%clk
0:00:04.4]} 54. Rb7+ {[%clk 0:00:05.2]} 54... Kg8 {[%clk 0:00:04.7]} 55. Ke6
{[%clk 0:00:04.4]} 55... Rh1 {[%clk 0:00:04.7]} 56. f6 {[%clk 0:00:04.4]} 56...
Re1+ {[%clk 0:00:04.9]} 57. Kf5 {[%clk 0:00:04.6]} 57... gxf6 {[%clk 0:00:05.1]}
58. Kg6 {[%clk 0:00:05.1]} 58... Kf8 {[%clk 0:00:04.5]} 59. Kxf6 {[%clk
0:00:05.3]} 59... Ke8 {[%clk 0:00:04]} 60. Rb8+ {[%clk 0:00:05.2]} 60... Kd7
{[%clk 0:00:03.8]} 61. f4 {[%clk 0:00:05.9]} 61... h5 {[%clk 0:00:03.7]} 62. f5
{[%clk 0:00:06.4]} 62... h4 {[%clk 0:00:04]} 63. Rh8 {[%clk 0:00:07.1]} 63...
Re4 {[%clk 0:00:03.3]} 64. Rh7+ {[%clk 0:00:06.8]} 64... Ke8 {[%clk 0:00:03.2]}
65. Rh8+ {[%clk 0:00:06.6]} 65... Kd7 {[%clk 0:00:03.8]} 66. Kf7 {[%clk
0:00:06.8]} 66... Rf4 {[%clk 0:00:03.7]} 67. f6 {[%clk 0:00:07.1]} 67... Kd6
{[%clk 0:00:03.8]} 68. Rh6 {[%clk 0:00:06.1]} 68... Ke5 {[%clk 0:00:03.5]} 69.
Ke7 {[%clk 0:00:05.9]} 69... h3 {[%clk 0:00:03.2]} 70. f7 {[%clk 0:00:05.5]}
70... Rf3 {[%clk 0:00:02.4]} 71. Rh5+ {[%clk 0:00:05.4]} 71... Ke4 {[%clk
0:00:02.3]} 72. Rh4+ {[%clk 0:00:05.8]} 72... Ke3 {[%clk 0:00:02.4]} 73. Rxh3
{[%clk 0:00:05.9]} 73... Rxh3 {[%clk 0:00:02.4]} 74. f8=Q {[%clk 0:00:06.4]}
74... Rf3 {[%clk 0:00:03.3]} 75. Qh6+ {[%clk 0:00:06.3]} 75... Ke4 {[%clk
0:00:03.4]} 76. Ke6 {[%clk 0:00:06.5]} 76... Rf4 {[%clk 0:00:03.1]} 77. Qh1+
{[%clk 0:00:06.5]} 77... Rf3 {[%clk 0:00:03.3]} 78. Qe1+ {[%clk 0:00:06.6]}
78... Kf4 {[%clk 0:00:03.5]} 79. Kd5 {[%clk 0:00:06.7]} 79... Kg4 {[%clk
0:00:03.5]} 80. Ke4 {[%clk 0:00:04.9]} 80... Rf4+ {[%clk 0:00:03.9]} 81. Ke3
{[%clk 0:00:05.3]} 81... Rf3+ {[%clk 0:00:04.6]} 82. Ke4 {[%clk 0:00:04.6]}
82... Rf4+ {[%clk 0:00:04.9]} 83. Ke5 {[%clk 0:00:05.2]} 83... Rf5+ {[%clk
0:00:05.5]} 84. Ke6 {[%clk 0:00:05.8]} 84... Rf4 {[%clk 0:00:06.2]} 85. Qe2+
{[%clk 0:00:05.9]} 85... Rf3 {[%clk 0:00:06.3]} 86. Ke5 {[%clk 0:00:05.8]} 86...
Kg3 {[%clk 0:00:07]} 87. Ke4 {[%clk 0:00:06.2]} 87... Rf4+ {[%clk 0:00:07]} 88.
Ke3 {[%clk 0:00:06.4]} 88... Rf5 {[%clk 0:00:07.5]} 89. Qe1+ {[%clk 0:00:06.5]}
89... Kg4 {[%clk 0:00:07.8]} 90. Qg1+ {[%clk 0:00:06.6]} 90... Kh5 {[%clk
0:00:07.3]} 91. Ke4 {[%clk 0:00:07.3]} 91... Rg5 {[%clk 0:00:07.3]} 92. Qh1+
{[%clk 0:00:06]} 92... Kg6 {[%clk 0:00:07.4]} 93. Qh4 {[%clk 0:00:05.9]} 93...
Rg2 {[%clk 0:00:05.1]} 94. Qh3 {[%clk 0:00:03.1]} 94... Rg5 {[%clk 0:00:04.9]}
95. Kf4 {[%clk 0:00:03.2]} 95... Rc5 {[%clk 0:00:03.2]} 96. Qd3+ {[%clk
0:00:03.1]} 96... Kf7 {[%clk 0:00:02.2]} 97. Qd7+ {[%clk 0:00:03.2]} 97... Kg8
{[%clk 0:00:01.2]} 98. Qe8+ {[%clk 0:00:03.2]} 1-0

[Event "Early-Titled-Tuesday-Blitz-May-14-2024"]
[Site "Chess.com"]
[Date "2024.05.14"]
[Round "2"]
[White "Smoking_Crow"]
[Black "sergiochess83"]
[Result "0-1"]
[WhiteElo "2600"]
[BlackElo "2878"]
[TimeControl "180+1"]
[EndTime "8:20:55 PDT"]
[Termination "sergiochess83 won by checkmate"]

1. e4 {[%clk 0:03:00.9]} 1... e6 {[%clk 0:02:52.3]} 2. d4 {[%clk 0:02:59.7]}
2... d5 {[%clk 0:02:52.2]} 3. Nd2 {[%clk 0:03:00.3]} 3... c5 {[%clk 0:02:50.7]}
4. exd5 {[%clk 0:03:00.4]} 4... Qxd5 {[%clk 0:02:50.5]} 5. Ngf3 {[%clk
0:03:01.3]} 5... cxd4 {[%clk 0:02:49.9]} 6. Bc4 {[%clk 0:03:02.2]} 6... Qd6
{[%clk 0:02:46.6]} 7. O-O {[%clk 0:03:02.7]} 7... Nc6 {[%clk 0:02:44.2]} 8. Nb3
{[%clk 0:03:00.6]} 8... Nf6 {[%clk 0:02:43.2]} 9. Nbxd4 {[%clk 0:03:00.2]} 9...
Nxd4 {[%clk 0:02:43.2]} 10. Nxd4 {[%clk 0:03:01.1]} 10... Be7 {[%clk 0:02:40.7]}
11. Re1 {[%clk 0:03:01]} 11... O-O {[%clk 0:02:40.2]} 12. c3 {[%clk 0:03:01.2]}
12... Bd7 {[%clk 0:02:32.8]} 13. Qe2 {[%clk 0:03:01.3]} 13... Rfe8 {[%clk
0:02:29.8]} 14. Bg5 {[%clk 0:02:58.1]} 14... Qb6 {[%clk 0:02:22.1]} 15. Be3
{[%clk 0:02:53.8]} 15... Qc7 {[%clk 0:02:16.9]} 16. Bb3 {[%clk 0:02:52.4]} 16...
a6 {[%clk 0:02:12.8]} 17. Rad1 {[%clk 0:02:51]} 17... Rad8 {[%clk 0:02:12.3]}
18. Qf3 {[%clk 0:02:50.2]} 18... Bc8 {[%clk 0:01:48.4]} 19. Bf4 {[%clk
0:02:45.4]} 19... Bd6 {[%clk 0:01:44.6]} 20. Bxd6 {[%clk 0:02:17.6]} 20... Rxd6
{[%clk 0:01:43.8]} 21. h3 {[%clk 0:02:13.8]} 21... Red8 {[%clk 0:01:43.4]} 22.
Rc1 {[%clk 0:02:13.6]} 22... h6 {[%clk 0:01:42.9]} 23. Qg3 {[%clk 0:02:13.1]}
23... Qb6 {[%clk 0:01:39.8]} 24. Nf3 {[%clk 0:02:10.4]} 24... Bd7 {[%clk
0:01:34]} 25. Qe5 {[%clk 0:02:09.7]} 25... Be8 {[%clk 0:01:31.8]} 26. c4 {[%clk
0:02:07.8]} 26... Qc6 {[%clk 0:01:01.1]} 27. Qe2 {[%clk 0:02:06.5]} 27... Qc5
{[%clk 0:00:58.9]} 28. Bc2 {[%clk 0:02:01.3]} 28... Bc6 {[%clk 0:00:54.1]} 29.
a3 {[%clk 0:01:47]} 29... a5 {[%clk 0:00:45.2]} 30. Bb1 {[%clk 0:01:11.8]} 30...
b6 {[%clk 0:00:39.4]} 31. Rc3 {[%clk 0:00:56.5]} 31... Bxf3 {[%clk 0:00:37.8]}
32. Qxf3 {[%clk 0:00:57.4]} 32... Rd2 {[%clk 0:00:35.3]} 33. Bc2 {[%clk
0:00:52.2]} 33... R8d4 {[%clk 0:00:17.1]} 34. Qe3 {[%clk 0:00:45.1]} 34... Rd6
{[%clk 0:00:14.4]} 35. Qf3 {[%clk 0:00:38.2]} 35... Rd8 {[%clk 0:00:13.9]} 36.
Rb1 {[%clk 0:00:31.6]} 36... Qd4 {[%clk 0:00:11.9]} 37. b4 {[%clk 0:00:27.4]}
37... axb4 {[%clk 0:00:11.7]} 38. axb4 {[%clk 0:00:28.3]} 38... Rxf2 {[%clk
0:00:09.3]} 39. Qxf2 {[%clk 0:00:24.2]} 39... Qxc3 {[%clk 0:00:09.6]} 40. Qxb6
{[%clk 0:00:24.2]} 40... Re8 {[%clk 0:00:02.9]} 41. Bb3 {[%clk 0:00:15.7]} 41...
Ne4 {[%clk 0:00:02]} 42. Qc6 {[%clk 0:00:06.1]} 42... Qe3+ {[%clk 0:00:01.7]}
43. Kh1 {[%clk 0:00:06.5]} 43... Ng3+ {[%clk 0:00:01.6]} 44. Kh2 {[%clk
0:00:07]} 44... Rf8 {[%clk 0:00:02.1]} 45. Qf3 {[%clk 0:00:05.6]} 45... Qxf3
{[%clk 0:00:02.2]} 46. gxf3 {[%clk 0:00:06.5]} 46... Nf5 {[%clk 0:00:03]} 47. c5
{[%clk 0:00:06.6]} 47... Nd4 {[%clk 0:00:03]} 48. Ba4 {[%clk 0:00:07]} 48... Ra8
{[%clk 0:00:03.2]} 49. Bd7 {[%clk 0:00:06.6]} 49... Kf8 {[%clk 0:00:02.6]} 50.
b5 {[%clk 0:00:06.3]} 50... Ke7 {[%clk 0:00:03.1]} 51. c6 {[%clk 0:00:06.3]}
51... Kd6 {[%clk 0:00:02.8]} 52. b6 {[%clk 0:00:06.6]} 52... Nxc6 {[%clk
0:00:02.4]} 53. b7 {[%clk 0:00:07]} 53... Rb8 {[%clk 0:00:02.5]} 54. Bc8 {[%clk
0:00:07.6]} 54... Kc7 {[%clk 0:00:02.7]} 55. Rc1 {[%clk 0:00:07.6]} 55... Kb6
{[%clk 0:00:03.2]} 56. Kg3 {[%clk 0:00:07.1]} 56... Na5 {[%clk 0:00:03.6]} 57.
Rb1+ {[%clk 0:00:06.9]} 57... Kc7 {[%clk 0:00:03.9]} 58. Kf4 {[%clk 0:00:05.7]}
58... Nxb7 {[%clk 0:00:03.9]} 59. Bxb7 {[%clk 0:00:06.1]} 59... Rxb7 {[%clk
0:00:04.1]} 60. Rd1 {[%clk 0:00:06.6]} 60... Rb5 {[%clk 0:00:03.6]} 61. Rd2
{[%clk 0:00:06.1]} 61... Rf5+ {[%clk 0:00:04.5]} 62. Kg4 {[%clk 0:00:06.3]}
62... Kc6 {[%clk 0:00:05.4]} 63. f4 {[%clk 0:00:06.6]} 63... g6 {[%clk
0:00:06.3]} 64. h4 {[%clk 0:00:06.9]} 64... h5+ {[%clk 0:00:07.2]} 65. Kg3
{[%clk 0:00:07]} 65... Rd5 {[%clk 0:00:08.1]} 66. Ra2 {[%clk 0:00:07.1]} 66...
Kd6 {[%clk 0:00:08.6]} 67. Kf3 {[%clk 0:00:07.7]} 67... Rf5 {[%clk 0:00:09.5]}
68. Ke4 {[%clk 0:00:08.1]} 68... Ke7 {[%clk 0:00:10.1]} 69. Ra8 {[%clk
0:00:07.9]} 69... Kf6 {[%clk 0:00:10.2]} 70. Ra7 {[%clk 0:00:08.8]} 70... Rb5
{[%clk 0:00:10.2]} 71. Ra4 {[%clk 0:00:08]} 71... Rb3 {[%clk 0:00:10.2]} 72. f5
{[%clk 0:00:08.3]} 72... gxf5+ {[%clk 0:00:10]} 73. Kf4 {[%clk 0:00:08.7]} 73...
Rd3 {[%clk 0:00:10.3]} 74. Ra6 {[%clk 0:00:05.7]} 74... Rd4+ {[%clk 0:00:09.6]}
75. Kg3 {[%clk 0:00:05.9]} 75... Rg4+ {[%clk 0:00:09.9]} 76. Kf3 {[%clk
0:00:06.2]} 76... Rxh4 {[%clk 0:00:10]} 77. Ra7 {[%clk 0:00:07.1]} 77... Rg4
{[%clk 0:00:10.1]} 78. Ra8 {[%clk 0:00:07.1]} 78... h4 {[%clk 0:00:10.3]} 79.
Rh8 {[%clk 0:00:07.8]} 79... e5 {[%clk 0:00:10.7]} 80. Rh6+ {[%clk 0:00:07.8]}
80... Kg5 {[%clk 0:00:10.9]} 81. Rh7 {[%clk 0:00:07.9]} 81... Rg3+ {[%clk
0:00:11.2]} 82. Kf2 {[%clk 0:00:08.3]} 82... f6 {[%clk 0:00:11]} 83. Rh8 {[%clk
0:00:07.3]} 83... Rb3 {[%clk 0:00:10.7]} 84. Rg8+ {[%clk 0:00:07.3]} 84... Kf4
{[%clk 0:00:11.1]} 85. Rh8 {[%clk 0:00:07.9]} 85... h3 {[%clk 0:00:10.4]} 86.
Kg1 {[%clk 0:00:08]} 86... Kg3 {[%clk 0:00:09.7]} 87. Rg8+ {[%clk 0:00:07.7]}
87... Kf3 {[%clk 0:00:10]} 88. Kh2 {[%clk 0:00:08]} 88... e4 {[%clk 0:00:09.4]}
89. Rg3+ {[%clk 0:00:08.1]} 89... Kf2 {[%clk 0:00:09.9]} 90. Rxb3 {[%clk
0:00:09]} 90... e3 {[%clk 0:00:10.5]} 91. Rb5 {[%clk 0:00:09]} 91... f4 {[%clk
0:00:10.3]} 92. Rf5 {[%clk 0:00:08.4]} 92... f3 {[%clk 0:00:10.7]} 93. Kxh3
{[%clk 0:00:08.4]} 93... e2 {[%clk 0:00:11.2]} 94. Kg4 {[%clk 0:00:08.1]} 94...
e1=Q {[%clk 0:00:11.3]} 95. Rxf3+ {[%clk 0:00:08.4]} 95... Kg2 {[%clk
0:00:10.9]} 96. Rxf6 {[%clk 0:00:08.4]} 96... Qe4+ {[%clk 0:00:11.1]} 97. Kg5
{[%clk 0:00:08.7]} 97... Kg3 {[%clk 0:00:11]} 98. Rf5 {[%clk 0:00:08.7]} 98...
Qe6 {[%clk 0:00:11]} 99. Rf6 {[%clk 0:00:08.8]} 99... Qe5+ {[%clk 0:00:11.5]}
100. Rf5 {[%clk 0:00:08.7]} 100... Qg7+ {[%clk 0:00:11.7]} 101. Kh5 {[%clk
0:00:08.4]} 101... Qg4+ {[%clk 0:00:12.6]} 102. Kh6 {[%clk 0:00:08.4]} 102...
Qxf5 {[%clk 0:00:13.5]} 103. Kg7 {[%clk 0:00:08.3]} 103... Kh4 {[%clk
0:00:13.4]} 104. Kh8 {[%clk 0:00:09.2]} 104... Kg5 {[%clk 0:00:12.9]} 105. Kg8
{[%clk 0:00:10.1]} 105... Qd7 {[%clk 0:00:12.7]} 106. Kh8 {[%clk 0:00:11]}
106... Kf6 {[%clk 0:00:13.3]} 107. Kg8 {[%clk 0:00:11.9]} 107... Qg7# {[%clk
0:00:13.4]} 0-1

[Event "Early-Titled-Tuesday-Blitz-May-14-2024"]
[Site "Chess.com"]
[Date "2024.05.14"]
[Round "2"]
[White "hongnhung1234"]
[Black "bangchess21"]
[Result "1/2-1/2"]
[WhiteElo "2546"]
[BlackElo "2768"]
[TimeControl "180+1"]
[EndTime "8:21:13 PDT"]
[Termination "Game drawn by stalemate"]

1. e4 {[%clk 0:03:00.9]} 1... e5 {[%clk 0:02:57.1]} 2. Nf3 {[%clk 0:03:00.4]}
2... Nc6 {[%clk 0:02:56.7]} 3. d4 {[%clk 0:03:00.7]} 3... exd4 {[%clk
0:02:56.2]} 4. Nxd4 {[%clk 0:03:01.6]} 4... Qf6 {[%clk 0:02:54.7]} 5. Be3 {[%clk
0:03:01.5]} 5... Bc5 {[%clk 0:02:54.3]} 6. c3 {[%clk 0:03:01.8]} 6... Nge7
{[%clk 0:02:53.3]} 7. Bc4 {[%clk 0:03:02.2]} 7... O-O {[%clk 0:02:52.7]} 8. O-O
{[%clk 0:03:02.6]} 8... b6 {[%clk 0:02:51.3]} 9. Qd2 {[%clk 0:03:02.5]} 9... Qg6
{[%clk 0:02:50.3]} 10. Nxc6 {[%clk 0:03:01.8]} 10... Qxc6 {[%clk 0:02:47]} 11.
Bxc5 {[%clk 0:02:53.2]} 11... Qxc5 {[%clk 0:02:35.7]} 12. Qe2 {[%clk 0:02:45.6]}
12... d6 {[%clk 0:02:27.9]} 13. Nd2 {[%clk 0:02:43.7]} 13... Be6 {[%clk
0:02:25.9]} 14. Bb3 {[%clk 0:02:35.2]} 14... Bxb3 {[%clk 0:02:21]} 15. Nxb3
{[%clk 0:02:30.8]} 15... Qe5 {[%clk 0:02:19.5]} 16. Rfe1 {[%clk 0:02:25]} 16...
Rae8 {[%clk 0:02:13]} 17. Qa6 {[%clk 0:02:22.2]} 17... Nc6 {[%clk 0:02:07]} 18.
a4 {[%clk 0:02:17.6]} 18... Qe6 {[%clk 0:01:59.3]} 19. Qb5 {[%clk 0:01:58.8]}
19... Qd7 {[%clk 0:01:51.6]} 20. Nd4 {[%clk 0:01:47.8]} 20... Ne5 {[%clk
0:01:50]} 21. Qa6 {[%clk 0:01:46.9]} 21... c6 {[%clk 0:01:46.3]} 22. Rad1 {[%clk
0:01:34.4]} 22... Qc7 {[%clk 0:01:38.1]} 23. Nf5 {[%clk 0:01:33.1]} 23... Re6
{[%clk 0:01:38.1]} 24. h3 {[%clk 0:01:25.9]} 24... Rfe8 {[%clk 0:01:33.1]} 25.
Rd2 {[%clk 0:01:21.7]} 25... Rg6 {[%clk 0:01:30.4]} 26. Kh1 {[%clk 0:01:16.4]}
26... h5 {[%clk 0:01:26.4]} 27. Red1 {[%clk 0:01:16.1]} 27... Ree6 {[%clk
0:01:27]} 28. b4 {[%clk 0:01:12.7]} 28... Ref6 {[%clk 0:01:15.6]} 29. Qe2 {[%clk
0:01:11.7]} 29... Qd7 {[%clk 0:00:53.9]} 30. f4 {[%clk 0:01:05.1]} 30... Ng4
{[%clk 0:00:40.9]} 31. hxg4 {[%clk 0:01:03.1]} 31... Rxg4 {[%clk 0:00:41.4]} 32.
Rxd6 {[%clk 0:00:57.5]} 32... Rxd6 {[%clk 0:00:41.8]} 33. Rxd6 {[%clk
0:00:58.4]} 33... Qe8 {[%clk 0:00:42.2]} 34. Qd3 {[%clk 0:00:57.1]} 34... Kh7
{[%clk 0:00:42.8]} 35. Kg1 {[%clk 0:00:55.3]} 35... g6 {[%clk 0:00:41.7]} 36.
Rd8 {[%clk 0:00:50.7]} 36... Qe6 {[%clk 0:00:40.3]} 37. Qd4 {[%clk 0:00:47.6]}
37... f6 {[%clk 0:00:36.1]} 38. Qd7+ {[%clk 0:00:46.6]} 38... Qxd7 {[%clk
0:00:36.7]} 39. Rxd7+ {[%clk 0:00:47.5]} 39... Kh8 {[%clk 0:00:37.4]} 40. Ne7
{[%clk 0:00:47.5]} 40... h4 {[%clk 0:00:35.9]} 41. Kh2 {[%clk 0:00:47.7]} 41...
Rg3 {[%clk 0:00:34.7]} 42. Rxa7 {[%clk 0:00:46.4]} 42... g5 {[%clk 0:00:34]} 43.
fxg5 {[%clk 0:00:46.3]} 43... fxg5 {[%clk 0:00:34.9]} 44. Nf5 {[%clk 0:00:46.9]}
44... Rxc3 {[%clk 0:00:34.7]} 45. a5 {[%clk 0:00:47.6]} 45... bxa5 {[%clk
0:00:34.5]} 46. bxa5 {[%clk 0:00:48.5]} 46... Ra3 {[%clk 0:00:35.4]} 47. Ra8+
{[%clk 0:00:48.2]} 47... Kh7 {[%clk 0:00:35.8]} 48. a6 {[%clk 0:00:49]} 48...
Kg6 {[%clk 0:00:36.3]} 49. Nd6 {[%clk 0:00:49.1]} 49... g4 {[%clk 0:00:35.9]}
50. a7 {[%clk 0:00:48.3]} 50... Ra1 {[%clk 0:00:25.8]} 51. Rg8+ {[%clk
0:00:43.2]} 51... Kh5 {[%clk 0:00:26]} 52. Rh8+ {[%clk 0:00:42.1]} 52... Kg5
{[%clk 0:00:26]} 53. Nf7+ {[%clk 0:00:38.3]} 53... Kf4 {[%clk 0:00:26.4]} 54.
Rxh4 {[%clk 0:00:27.2]} 54... Rxa7 {[%clk 0:00:26.5]} 55. Nh6 {[%clk 0:00:27.4]}
55... Kg5 {[%clk 0:00:26.9]} 56. Nf5 {[%clk 0:00:27]} 56... Ra4 {[%clk
0:00:27.5]} 57. Rh8 {[%clk 0:00:23.8]} 57... Rxe4 {[%clk 0:00:26.9]} 58. Ng3
{[%clk 0:00:24.5]} 58... Rc4 {[%clk 0:00:24.6]} 59. Rc8 {[%clk 0:00:24.5]} 59...
Rc2 {[%clk 0:00:19.5]} 60. Kg1 {[%clk 0:00:22.1]} 60... Kf4 {[%clk 0:00:17.9]}
61. Nh5+ {[%clk 0:00:22.2]} 61... Kg5 {[%clk 0:00:18.2]} 62. Ng7 {[%clk
0:00:21.5]} 62... g3 {[%clk 0:00:16.8]} 63. Kf1 {[%clk 0:00:20.6]} 63... Rf2+
{[%clk 0:00:17]} 64. Kg1 {[%clk 0:00:20.4]} 64... Rc2 {[%clk 0:00:17.5]} 65. Rf8
{[%clk 0:00:18.7]} 65... Re2 {[%clk 0:00:12.5]} 66. Kf1 {[%clk 0:00:18.6]} 66...
Re7 {[%clk 0:00:11]} 67. Nf5 {[%clk 0:00:17]} 67... Re5 {[%clk 0:00:07.7]} 68.
Nxg3 {[%clk 0:00:17.1]} 68... c5 {[%clk 0:00:08.3]} 69. Rc8 {[%clk 0:00:17]}
69... Kg4 {[%clk 0:00:08.5]} 70. Kf2 {[%clk 0:00:16.8]} 70... Re7 {[%clk
0:00:09.1]} 71. Rxc5 {[%clk 0:00:14.8]} 71... Rf7+ {[%clk 0:00:09.2]} 72. Rf5
{[%clk 0:00:15.2]} 72... Rxf5+ {[%clk 0:00:04.6]} 73. Nxf5 {[%clk 0:00:16.1]}
73... Kxf5 {[%clk 0:00:05.5]} 74. Kf3 {[%clk 0:00:16.8]} 74... Kg5 {[%clk
0:00:06.1]} 75. Kg3 {[%clk 0:00:17.4]} 75... Kf5 {[%clk 0:00:06.7]} 76. Kh4
{[%clk 0:00:17.5]} 76... Kg6 {[%clk 0:00:07.3]} 77. Kg4 {[%clk 0:00:18]} 77...
Kf6 {[%clk 0:00:07.5]} 78. Kh5 {[%clk 0:00:18.4]} 78... Kg7 {[%clk 0:00:08.2]}
79. g3 {[%clk 0:00:17.2]} 79... Kh7 {[%clk 0:00:08.8]} 80. g4 {[%clk 0:00:17.7]}
80... Kg8 {[%clk 0:00:09]} 81. Kg5 {[%clk 0:00:18.5]} 81... Kg7 {[%clk
0:00:09.9]} 82. Kf5 {[%clk 0:00:18.7]} 82... Kf7 {[%clk 0:00:10.3]} 83. Kg5
{[%clk 0:00:18.4]} 83... Kg7 {[%clk 0:00:09.5]} 84. Kh5 {[%clk 0:00:18.9]} 84...
Kh7 {[%clk 0:00:09.6]} 85. g5 {[%clk 0:00:17.4]} 85... Kg7 {[%clk 0:00:09.9]}
86. Kh4 {[%clk 0:00:15.6]} 86... Kg6 {[%clk 0:00:10.1]} 87. Kg4 {[%clk
0:00:16.3]} 87... Kg7 {[%clk 0:00:11]} 88. Kh5 {[%clk 0:00:16.9]} 88... Kh7
{[%clk 0:00:11.5]} 89. g6+ {[%clk 0:00:17.1]} 89... Kg7 {[%clk 0:00:11.5]} 90.
Kg5 {[%clk 0:00:17.7]} 90... Kg8 {[%clk 0:00:10.8]} 91. Kf5 {[%clk 0:00:17.8]}
91... Kg7 {[%clk 0:00:10.9]} 92. Kg5 {[%clk 0:00:18.5]} 92... Kg8 {[%clk
0:00:11.4]} 93. Kf6 {[%clk 0:00:19.4]} 93... Kf8 {[%clk 0:00:11.7]} 94. g7+
{[%clk 0:00:19.7]} 94... Kg8 {[%clk 0:00:12.2]} 95. Kg6 {[%clk 0:00:20.2]}
1/2-1/2